[Event "Titled Tuesday Blitz March 21 Late 2023"]
[White "chessjazda"]
[Black "Jimenez Fernandez, Rebeca"]
[BlackFideId "32070934"]
[WhiteElo "2349"]
[BlackElo "2008"]
[Result "1-0"]
[Round "06"]
[TimeControl "180+2"]
[Date "2023.03.21"]
[WhiteClock "0:01:03"]
[BlackClock "0:00:01"]

1. e4 {[%clk 0:02:57]}  c5 {[%clk 0:02:57]} 2. c3 {[%clk 0:02:55]}  d5 {[%clk 0:02:57]} 3. exd5 {[%clk 0:02:53]}  Qxd5 {[%clk 0:02:58]} 4. Nf3 {[%clk 0:02:51]}  Nc6 {[%clk 0:02:57]} 5. Be2 {[%clk 0:02:49]}  Nf6 {[%clk 0:02:54]} 6. O-O {[%clk 0:02:49]}  g6 {[%clk 0:02:54]} 7. Na3 {[%clk 0:02:48]}  Bg7 {[%clk 0:02:53]} 8. d3 {[%clk 0:02:48]}  O-O {[%clk 0:02:53]} 9. h3 {[%clk 0:02:45]}  b6 {[%clk 0:02:51]} 10. Bf4 {[%clk 0:02:33]}  e5 {[%clk 0:02:46]} 11. Bg3 {[%clk 0:02:32]}  Bb7 {[%clk 0:02:38]} 12. Qc2 {[%clk 0:02:31]}  Rad8 {[%clk 0:02:32]} 13. Nc4 {[%clk 0:02:29]}  Rfe8 {[%clk 0:02:25]} 14. Rad1 {[%clk 0:02:26]}  Nh5 {[%clk 0:02:24]} 15. Bh2 {[%clk 0:02:22]}  Nf4 {[%clk 0:02:21]} 16. Bxf4 {[%clk 0:02:21]}  exf4 {[%clk 0:02:21]} 17. Rfe1 {[%clk 0:02:16]}  g5 {[%clk 0:01:12]} 18. Bf1 {[%clk 0:02:03]}  h5 {[%clk 0:00:54]} 19. Rxe8+ {[%clk 0:02:02]}  Rxe8 {[%clk 0:00:55]} 20. Re1 {[%clk 0:02:02]}  Rxe1 {[%clk 0:00:51]} 21. Nxe1 {[%clk 0:02:02]}  Ne5 {[%clk 0:00:38]} 22. Nxe5 {[%clk 0:01:57]}  Bxe5 {[%clk 0:00:34]} 23. Qe2 {[%clk 0:01:57]}  h4 {[%clk 0:00:20]} 24. Qg4 {[%clk 0:01:51]}  Bf6 {[%clk 0:00:18]} 25. Nf3 {[%clk 0:01:49]}  Ba6 {[%clk 0:00:16]} 26. Nxh4 {[%clk 0:01:30]}  Bxd3 {[%clk 0:00:16]} 27. Bxd3 {[%clk 0:01:29]}  Qxd3 {[%clk 0:00:16]} 28. Nf3 {[%clk 0:01:28]}  Qd1+ {[%clk 0:00:11]} 29. Kh2 {[%clk 0:01:28]}  Kg7 {[%clk 0:00:11]} 30. h4 {[%clk 0:01:19]}  Qd5 {[%clk 0:00:06]} 31. hxg5 {[%clk 0:01:16]}  Be7 {[%clk 0:00:03]} 32. Qh5 {[%clk 0:01:08]}  Bd6 {[%clk 0:00:01]} 33. Qh6+ {[%clk 0:01:06]}  Kg8 {[%clk 0:00:01]} 34. g6 {[%clk 0:01:03]} 1-0


[Site "https://www.chess.com"]

[Event "Titled Tuesday Blitz March 21 Late 2023"]
[White "Bhavikatti, Neil"]
[Black "Hartikainen, Jarmo"]
[WhiteFideId "30935024"]
[BlackFideId "503134"]
[WhiteElo "2337"]
[BlackElo "2177"]
[Result "1-0"]
[Round "06"]
[TimeControl "180+2"]
[Date "2023.03.21"]
[WhiteClock "0:01:19"]
[BlackClock "0:00:09"]

1. d4 {[%clk 0:03:00]}  Nf6 {[%clk 0:02:59]} 2. c4 {[%clk 0:03:01]}  g6 {[%clk 0:02:59]} 3. Nc3 {[%clk 0:03:01]}  d5 {[%clk 0:02:59]} 4. Bg5 {[%clk 0:02:58]}  Ne4 {[%clk 0:02:58]} 5. Bh4 {[%clk 0:02:59]}  Nxc3 {[%clk 0:02:58]} 6. bxc3 {[%clk 0:02:58]}  Bg7 {[%clk 0:02:56]} 7. e3 {[%clk 0:02:59]}  c5 {[%clk 0:02:52]} 8. Nf3 {[%clk 0:02:56]}  cxd4 {[%clk 0:02:50]} 9. cxd4 {[%clk 0:02:55]}  Qa5+ {[%clk 0:02:48]} 10. Qd2 {[%clk 0:02:55]}  Qxd2+ {[%clk 0:02:47]} 11. Nxd2 {[%clk 0:02:56]}  e6 {[%clk 0:02:31]} 12. cxd5 {[%clk 0:02:50]}  exd5 {[%clk 0:02:31]} 13. Rc1 {[%clk 0:02:48]}  Nc6 {[%clk 0:02:23]} 14. Bb5 {[%clk 0:02:41]}  Bd7 {[%clk 0:02:23]} 15. O-O {[%clk 0:02:41]}  O-O {[%clk 0:02:20]} 16. Nb3 {[%clk 0:02:39]}  a6 {[%clk 0:01:29]} 17. Be2 {[%clk 0:02:36]}  Be6 {[%clk 0:01:03]} 18. Nc5 {[%clk 0:02:34]}  Na5 {[%clk 0:00:45]} 19. Nxe6 {[%clk 0:02:16]}  fxe6 {[%clk 0:00:44]} 20. Bg4 {[%clk 0:02:16]}  Rfe8 {[%clk 0:00:38]} 21. Rc7 {[%clk 0:02:16]}  Bf8 {[%clk 0:00:30]} 22. Rfc1 {[%clk 0:02:10]}  Bd6 {[%clk 0:00:29]} 23. Rd7 {[%clk 0:02:10]}  Nc4 {[%clk 0:00:26]} 24. Rxc4 {[%clk 0:02:09]}  dxc4 {[%clk 0:00:26]} 25. Rxd6 {[%clk 0:02:07]}  c3 {[%clk 0:00:22]} 26. e4 {[%clk 0:01:58]}  c2 {[%clk 0:00:20]} 27. Bg5 {[%clk 0:01:59]}  Rac8 {[%clk 0:00:18]} 28. Bc1 {[%clk 0:01:52]}  Rc3 {[%clk 0:00:17]} 29. Kf1 {[%clk 0:01:44]}  Rd3 {[%clk 0:00:16]} 30. Ke1 {[%clk 0:01:44]}  Kf7 {[%clk 0:00:14]} 31. Be2 {[%clk 0:01:41]}  Rc3 {[%clk 0:00:13]} 32. Kd2 {[%clk 0:01:41]}  Rcc8 {[%clk 0:00:11]} 33. Bd3 {[%clk 0:01:40]}  Re7 {[%clk 0:00:10]} 34. Bxc2 {[%clk 0:01:17]}  Rec7 {[%clk 0:00:10]} 35. Bb3 {[%clk 0:01:17]}  Rxc1 {[%clk 0:00:09]} 36. Bxe6+ {[%clk 0:01:18]}  Ke7 {[%clk 0:00:09]} 37. Bxc8 {[%clk 0:01:19]}  Kxd6 {[%clk 0:00:09]} 38. Kxc1 {[%clk 0:01:19]} 1-0


[Site "https://www.chess.com"]

[Event "Titled Tuesday Blitz March 21 Late 2023"]
[White "Rosenberg, Evan S"]
[Black "Hon, Eric"]
[WhiteFideId "2019299"]
[BlackFideId "2097117"]
[WhiteElo "2324"]
[BlackElo "1918"]
[Result "0-1"]
[Round "06"]
[TimeControl "180+2"]
[Date "2023.03.21"]
[WhiteClock "0:00:02"]
[BlackClock "0:01:44"]

1. d4 {[%clk 0:03:00]}  Nf6 {[%clk 0:02:57]} 2. Nf3 {[%clk 0:03:01]}  c5 {[%clk 0:02:57]} 3. d5 {[%clk 0:03:01]}  g6 {[%clk 0:02:57]} 4. Nc3 {[%clk 0:03:00]}  Bg7 {[%clk 0:02:57]} 5. e4 {[%clk 0:03:00]}  O-O {[%clk 0:02:57]} 6. e5 {[%clk 0:03:00]}  Ng4 {[%clk 0:02:57]} 7. Bf4 {[%clk 0:02:38]}  d6 {[%clk 0:02:57]} 8. Qe2 {[%clk 0:02:14]}  dxe5 {[%clk 0:02:55]} 9. Nxe5 {[%clk 0:02:14]}  Nxe5 {[%clk 0:02:56]} 10. Bxe5 {[%clk 0:02:14]}  Nd7 {[%clk 0:02:56]} 11. Bxg7 {[%clk 0:02:14]}  Kxg7 {[%clk 0:02:57]} 12. O-O-O {[%clk 0:02:11]}  Nf6 {[%clk 0:02:56]} 13. h4 {[%clk 0:02:07]}  h5 {[%clk 0:02:55]} 14. f3 {[%clk 0:02:06]}  Bf5 {[%clk 0:02:54]} 15. Qe5 {[%clk 0:02:02]}  Qd6 {[%clk 0:02:48]} 16. Qe3 {[%clk 0:01:52]}  a6 {[%clk 0:02:45]} 17. Be2 {[%clk 0:01:45]}  e5 {[%clk 0:02:39]} 18. g4 {[%clk 0:01:35]}  hxg4 {[%clk 0:02:36]} 19. h5 {[%clk 0:01:27]}  gxf3 {[%clk 0:02:26]} 20. hxg6 {[%clk 0:01:18]}  Ng4 {[%clk 0:02:17]} 21. Qg5 {[%clk 0:00:47]}  Qxg6 {[%clk 0:02:16]} 22. Qxg6+ {[%clk 0:00:36]}  fxg6 {[%clk 0:02:14]} 23. Bxf3 {[%clk 0:00:31]}  Nf2 {[%clk 0:02:12]} 24. d6 {[%clk 0:00:31]}  Nxd1 {[%clk 0:02:10]} 25. Rxd1 {[%clk 0:00:30]}  Rf7 {[%clk 0:02:07]} 26. Nd5 {[%clk 0:00:22]}  e4 {[%clk 0:02:05]} 27. Bg2 {[%clk 0:00:19]}  Rd8 {[%clk 0:02:04]} 28. Ne7 {[%clk 0:00:14]}  Rxe7 {[%clk 0:01:56]} 29. dxe7 {[%clk 0:00:14]}  Rxd1+ {[%clk 0:01:56]} 30. Kxd1 {[%clk 0:00:14]}  Kf7 {[%clk 0:01:57]} 31. Ke2 {[%clk 0:00:11]}  Kxe7 {[%clk 0:01:57]} 32. Ke3 {[%clk 0:00:12]}  Ke6 {[%clk 0:01:57]} 33. Kf4 {[%clk 0:00:12]}  Kf6 {[%clk 0:01:56]} 34. c3 {[%clk 0:00:11]}  g5+ {[%clk 0:01:56]} 35. Ke3 {[%clk 0:00:11]}  Ke5 {[%clk 0:01:56]} 36. Bf1 {[%clk 0:00:11]}  a5 {[%clk 0:01:54]} 37. Be2 {[%clk 0:00:11]}  Bd7 {[%clk 0:01:53]} 38. Bh5 {[%clk 0:00:10]}  g4 {[%clk 0:01:52]} 39. Bg6 {[%clk 0:00:09]}  Bf5 {[%clk 0:01:51]} 40. Bh5 {[%clk 0:00:07]}  g3 {[%clk 0:01:50]} 41. Be2 {[%clk 0:00:06]}  Bd7 {[%clk 0:01:49]} 42. Bf1 {[%clk 0:00:06]}  b5 {[%clk 0:01:48]} 43. Bg2 {[%clk 0:00:05]}  Bc6 {[%clk 0:01:49]} 44. b3 {[%clk 0:00:04]}  Bd5 {[%clk 0:01:47]} 45. c4 {[%clk 0:00:03]}  bxc4 {[%clk 0:01:46]} 46. bxc4 {[%clk 0:00:03]}  Bxc4 {[%clk 0:01:47]} 47. Bxe4 {[%clk 0:00:03]}  Bxa2 {[%clk 0:01:47]} 48. Bg2 {[%clk 0:00:03]}  Bd5 {[%clk 0:01:46]} 49. Bh3 {[%clk 0:00:02]}  a4 {[%clk 0:01:46]} 50. Kd3 {[%clk 0:00:01]}  g2 {[%clk 0:01:46]} 51. Bxg2 {[%clk 0:00:01]}  Bxg2 {[%clk 0:01:47]} 52. Kc3 {[%clk 0:00:02]}  Kd5 {[%clk 0:01:45]} 53. Kb2 {[%clk 0:00:01]}  Kc4 {[%clk 0:01:45]} 54. Ka1 {[%clk 0:00:02]}  Kb3 {[%clk 0:01:44]} 55. Kb1 {[%clk 0:00:02]}  c4 {[%clk 0:01:44]} 0-1


[Site "https://www.chess.com"]

[Event "Titled Tuesday Blitz March 21 Late 2023"]
[White "Manu_ChessExcelsior"]
[Black "Jiganchine, Roman"]
[BlackFideId "2603667"]
[WhiteElo "2048"]
[BlackElo "2302"]
[Result "1/2-1/2"]
[Round "06"]
[TimeControl "180+2"]
[Date "2023.03.21"]
[WhiteClock "0:00:03"]
[BlackClock "0:00:09"]

1. e4 {[%clk 0:02:59]}  c6 {[%clk 0:02:59]} 2. d4 {[%clk 0:02:57]}  d5 {[%clk 0:02:59]} 3. e5 {[%clk 0:02:58]}  Bf5 {[%clk 0:02:58]} 4. Bd3 {[%clk 0:02:58]}  Bxd3 {[%clk 0:02:56]} 5. Qxd3 {[%clk 0:02:59]}  e6 {[%clk 0:02:53]} 6. c3 {[%clk 0:02:59]}  Qb6 {[%clk 0:02:48]} 7. Ne2 {[%clk 0:02:57]}  Qa6 {[%clk 0:02:48]} 8. Qd1 {[%clk 0:02:58]}  c5 {[%clk 0:02:46]} 9. O-O {[%clk 0:02:57]}  Ne7 {[%clk 0:02:43]} 10. Nd2 {[%clk 0:02:48]}  Nec6 {[%clk 0:02:43]} 11. Nb3 {[%clk 0:02:41]}  Nd7 {[%clk 0:02:41]} 12. Be3 {[%clk 0:02:39]}  cxd4 {[%clk 0:02:37]} 13. cxd4 {[%clk 0:02:35]}  Be7 {[%clk 0:02:35]} 14. f4 {[%clk 0:02:29]}  g6 {[%clk 0:02:25]} 15. g4 {[%clk 0:02:26]}  Nb4 {[%clk 0:01:54]} 16. Ng3 {[%clk 0:02:03]}  Qd3 {[%clk 0:01:44]} 17. Qf3 {[%clk 0:01:46]}  Nc2 {[%clk 0:01:33]} 18. Rae1 {[%clk 0:01:46]}  Bb4 {[%clk 0:01:14]} 19. Re2 {[%clk 0:01:38]}  O-O {[%clk 0:00:48]} 20. f5 {[%clk 0:01:31]}  Nxe3 {[%clk 0:00:25]} 21. Rxe3 {[%clk 0:01:29]}  Qa6 {[%clk 0:00:25]} 22. f6 {[%clk 0:01:17]}  Qxa2 {[%clk 0:00:24]} 23. Ne2 {[%clk 0:00:50]}  Rfc8 {[%clk 0:00:22]} 24. Qf4 {[%clk 0:00:46]}  Bf8 {[%clk 0:00:21]} 25. Rh3 {[%clk 0:00:46]}  Qxb2 {[%clk 0:00:18]} 26. Qf3 {[%clk 0:00:17]}  Rc2 {[%clk 0:00:17]} 27. Nbc1 {[%clk 0:00:15]}  Rac8 {[%clk 0:00:16]} 28. Nd3 {[%clk 0:00:15]}  Qb5 {[%clk 0:00:16]} 29. Ndf4 {[%clk 0:00:15]}  Rxe2 {[%clk 0:00:15]} 30. Qxe2 {[%clk 0:00:14]}  Qb4 {[%clk 0:00:14]} 31. g5 {[%clk 0:00:13]}  Qxd4+ {[%clk 0:00:14]} 32. Kh1 {[%clk 0:00:11]}  Rc3 {[%clk 0:00:13]} 33. Qg4 {[%clk 0:00:10]}  Rxh3 {[%clk 0:00:12]} 34. Qxh3 {[%clk 0:00:09]}  Qe4+ {[%clk 0:00:12]} 35. Qf3 {[%clk 0:00:09]}  b5 {[%clk 0:00:12]} 36. Qxe4 {[%clk 0:00:09]}  dxe4 {[%clk 0:00:12]} 37. Re1 {[%clk 0:00:09]}  Nc5 {[%clk 0:00:12]} 38. Rd1 {[%clk 0:00:09]}  a5 {[%clk 0:00:12]} 39. Rd8 {[%clk 0:00:09]}  b4 {[%clk 0:00:12]} 40. Rb8 {[%clk 0:00:07]}  b3 {[%clk 0:00:11]} 41. Rb5 {[%clk 0:00:06]}  a4 {[%clk 0:00:11]} 42. Ne2 {[%clk 0:00:07]}  a3 {[%clk 0:00:11]} 43. Nc3 {[%clk 0:00:07]}  b2 {[%clk 0:00:11]} 44. Ra5 {[%clk 0:00:06]}  Nb3 {[%clk 0:00:09]} 45. Ra8 {[%clk 0:00:05]}  Nc1 {[%clk 0:00:08]} 46. Kg2 {[%clk 0:00:05]}  a2 {[%clk 0:00:09]} 47. Nxa2 {[%clk 0:00:05]}  Nxa2 {[%clk 0:00:09]} 48. Rb8 {[%clk 0:00:05]}  Nc3 {[%clk 0:00:07]} 49. Rxb2 {[%clk 0:00:06]}  Nd5 {[%clk 0:00:08]} 50. Ra2 {[%clk 0:00:04]}  Nf4+ {[%clk 0:00:07]} 51. Kg3 {[%clk 0:00:03]}  Nd3 {[%clk 0:00:07]} 52. Kg2 {[%clk 0:00:03]}  Nxe5 {[%clk 0:00:07]} 53. Ra8 {[%clk 0:00:03]}  Nd3 {[%clk 0:00:06]} 54. h4 {[%clk 0:00:03]}  Nb4 {[%clk 0:00:06]} 55. Kf2 {[%clk 0:00:04]}  Nd5 {[%clk 0:00:06]} 56. Ke2 {[%clk 0:00:04]}  Nf4+ {[%clk 0:00:05]} 57. Ke3 {[%clk 0:00:04]}  Ng2+ {[%clk 0:00:05]} 58. Kxe4 {[%clk 0:00:03]}  Nxh4 {[%clk 0:00:06]} 59. Kf4 {[%clk 0:00:03]}  Nf5 {[%clk 0:00:06]} 60. Ke5 {[%clk 0:00:03]}  Ng3 {[%clk 0:00:06]} 61. Kf4 {[%clk 0:00:03]}  Nf5 {[%clk 0:00:06]} 62. Kg4 {[%clk 0:00:04]}  h6 {[%clk 0:00:07]} 63. Kf4 {[%clk 0:00:03]}  hxg5+ {[%clk 0:00:07]} 64. Kxg5 {[%clk 0:00:04]}  e5 {[%clk 0:00:06]} 65. Re8 {[%clk 0:00:03]}  e4 {[%clk 0:00:06]} 66. Rxe4 {[%clk 0:00:03]}  Nd6 {[%clk 0:00:06]} 67. Ra4 {[%clk 0:00:02]}  Nf5 {[%clk 0:00:06]} 68. Ra8 {[%clk 0:00:02]}  Nd6 {[%clk 0:00:06]} 69. Rb8 {[%clk 0:00:03]}  Ne4+ {[%clk 0:00:06]} 70. Kf4 {[%clk 0:00:03]}  Nxf6 {[%clk 0:00:06]} 71. Kg5 {[%clk 0:00:03]}  Kg7 {[%clk 0:00:07]} 72. Ra8 {[%clk 0:00:03]}  Ne4+ {[%clk 0:00:07]} 73. Kf4 {[%clk 0:00:03]}  Nf6 {[%clk 0:00:07]} 74. Kg5 {[%clk 0:00:04]}  Bd6 {[%clk 0:00:07]} 75. Ra6 {[%clk 0:00:04]}  Ne4+ {[%clk 0:00:07]} 76. Kh4 {[%clk 0:00:04]}  Be7+ {[%clk 0:00:07]} 77. Kg4 {[%clk 0:00:04]}  Nf6+ {[%clk 0:00:07]} 78. Kg5 {[%clk 0:00:04]}  Ne4+ {[%clk 0:00:07]} 79. Kf4 {[%clk 0:00:05]}  Nf6 {[%clk 0:00:08]} 80. Kg5 {[%clk 0:00:04]}  Nh5+ {[%clk 0:00:09]} 81. Kg4 {[%clk 0:00:04]}  Bf6 {[%clk 0:00:09]} 82. Ra7 {[%clk 0:00:04]}  Bd4 {[%clk 0:00:09]} 83. Rb7 {[%clk 0:00:04]}  Nf6+ {[%clk 0:00:08]} 84. Kg5 {[%clk 0:00:05]}  Be3+ {[%clk 0:00:08]} 85. Kh4 {[%clk 0:00:04]}  g5+ {[%clk 0:00:08]} 86. Kg3 {[%clk 0:00:05]}  Kg6 {[%clk 0:00:08]} 87. Re7 {[%clk 0:00:04]}  Bf4+ {[%clk 0:00:09]} 88. Kf3 {[%clk 0:00:04]}  Nh5 {[%clk 0:00:09]} 89. Kg4 {[%clk 0:00:04]}  Nf6+ {[%clk 0:00:10]} 90. Kf3 {[%clk 0:00:04]}  Nd5 {[%clk 0:00:10]} 91. Rd7 {[%clk 0:00:03]}  Nf6 {[%clk 0:00:09]} 92. Re7 {[%clk 0:00:03]} 1/2-1/2


[Site "https://www.chess.com"]

[Event "Titled Tuesday Blitz March 21 Late 2023"]
[White "Vargas Pereda, Jesus Manue"]
[Black "Vifleemskaia, Svetlana"]
[WhiteFideId "5115710"]
[BlackFideId "4129490"]
[WhiteElo "1914"]
[BlackElo "1930"]
[Result "0-1"]
[Round "06"]
[TimeControl "180+2"]
[Date "2023.03.21"]
[WhiteClock "0:00:15"]
[BlackClock "0:00:12"]

1. d4 {[%clk 0:02:58]}  Nf6 {[%clk 0:02:59]} 2. Bf4 {[%clk 0:02:58]}  d5 {[%clk 0:02:59]} 3. e3 {[%clk 0:02:58]}  c5 {[%clk 0:02:59]} 4. c3 {[%clk 0:02:55]}  Nc6 {[%clk 0:02:59]} 5. Nd2 {[%clk 0:02:55]}  Qb6 {[%clk 0:02:59]} 6. Rb1 {[%clk 0:02:50]}  Bf5 {[%clk 0:02:58]} 7. Rc1 {[%clk 0:02:40]}  Qxb2 {[%clk 0:02:56]} 8. Ngf3 {[%clk 0:02:39]}  Qxa2 {[%clk 0:02:45]} 9. Be2 {[%clk 0:02:36]}  e6 {[%clk 0:02:43]} 10. Nh4 {[%clk 0:02:36]}  Be4 {[%clk 0:02:19]} 11. f3 {[%clk 0:02:28]}  Bg6 {[%clk 0:02:17]} 12. Nxg6 {[%clk 0:02:28]}  hxg6 {[%clk 0:02:17]} 13. O-O {[%clk 0:02:28]}  cxd4 {[%clk 0:02:10]} 14. cxd4 {[%clk 0:02:25]}  Qa3 {[%clk 0:02:09]} 15. Ra1 {[%clk 0:02:24]}  Qe7 {[%clk 0:02:09]} 16. Qb3 {[%clk 0:02:16]}  Qd7 {[%clk 0:02:06]} 17. Rfb1 {[%clk 0:02:15]}  Bb4 {[%clk 0:02:00]} 18. Ra2 {[%clk 0:02:10]}  O-O {[%clk 0:01:58]} 19. Nf1 {[%clk 0:02:06]}  a5 {[%clk 0:01:51]} 20. Bb5 {[%clk 0:01:59]}  Nh5 {[%clk 0:01:50]} 21. Bg5 {[%clk 0:01:50]}  f6 {[%clk 0:01:36]} 22. Bh4 {[%clk 0:01:49]}  g5 {[%clk 0:01:32]} 23. Bf2 {[%clk 0:01:48]}  f5 {[%clk 0:01:28]} 24. Qa4 {[%clk 0:01:40]}  Qd6 {[%clk 0:01:15]} 25. Rc2 {[%clk 0:01:30]}  Ne7 {[%clk 0:01:04]} 26. Rbc1 {[%clk 0:01:23]}  Nf6 {[%clk 0:00:58]} 27. Bg3 {[%clk 0:01:18]}  f4 {[%clk 0:00:58]} 28. exf4 {[%clk 0:01:17]}  gxf4 {[%clk 0:00:58]} 29. Bh4 {[%clk 0:01:16]}  Nf5 {[%clk 0:00:55]} 30. Bf2 {[%clk 0:01:13]}  Qb6 {[%clk 0:00:49]} 31. Rd1 {[%clk 0:01:04]}  Rac8 {[%clk 0:00:47]} 32. Rxc8 {[%clk 0:01:03]}  Rxc8 {[%clk 0:00:46]} 33. Bd3 {[%clk 0:01:00]}  Nd6 {[%clk 0:00:42]} 34. Bg6 {[%clk 0:00:49]}  Qc7 {[%clk 0:00:41]} 35. h4 {[%clk 0:00:26]}  b5 {[%clk 0:00:40]} 36. Qa1 {[%clk 0:00:25]}  Qc3 {[%clk 0:00:39]} 37. Qb1 {[%clk 0:00:23]}  Nc4 {[%clk 0:00:24]} 38. h5 {[%clk 0:00:23]}  Qb2 {[%clk 0:00:16]} 39. Qd3 {[%clk 0:00:19]}  Nd6 {[%clk 0:00:14]} 40. g4 {[%clk 0:00:17]}  Rc3 {[%clk 0:00:13]} 41. Qe2 {[%clk 0:00:16]}  Qxe2 {[%clk 0:00:12]} 42. Ra1 {[%clk 0:00:15]}  Qxf3 {[%clk 0:00:12]} 0-1


[Site "https://www.chess.com"]

[Event "Titled Tuesday Blitz March 21 Late 2023"]
[White "Oliveira, Tiago Batista"]
[Black "Gerbelli Neto, Eduardo"]
[WhiteFideId "2108291"]
[BlackFideId "2103281"]
[WhiteElo "1962"]
[BlackElo "2178"]
[Result "1-0"]
[Round "06"]
[TimeControl "180+2"]
[Date "2023.03.21"]
[WhiteClock "0:00:11"]
[BlackClock "0:00:29"]

1. d4 {[%clk 0:03:00]}  d5 {[%clk 0:02:59]} 2. c4 {[%clk 0:03:00]}  c6 {[%clk 0:03:00]} 3. Nf3 {[%clk 0:02:59]}  Nf6 {[%clk 0:03:00]} 4. Qc2 {[%clk 0:02:59]}  e6 {[%clk 0:03:00]} 5. g3 {[%clk 0:02:59]}  dxc4 {[%clk 0:02:58]} 6. Bg2 {[%clk 0:02:59]}  Na6 {[%clk 0:02:53]} 7. O-O {[%clk 0:02:58]}  Be7 {[%clk 0:02:49]} 8. Nbd2 {[%clk 0:02:57]}  Nb4 {[%clk 0:02:49]} 9. Qxc4 {[%clk 0:02:51]}  O-O {[%clk 0:02:33]} 10. e4 {[%clk 0:02:47]}  b6 {[%clk 0:02:33]} 11. e5 {[%clk 0:02:45]}  Ba6 {[%clk 0:02:33]} 12. Qb3 {[%clk 0:02:39]}  Nfd5 {[%clk 0:02:18]} 13. Nc4 {[%clk 0:02:07]}  c5 {[%clk 0:02:15]} 14. Rd1 {[%clk 0:01:58]}  Qc7 {[%clk 0:02:15]} 15. dxc5 {[%clk 0:01:53]}  Qxc5 {[%clk 0:02:08]} 16. Ne3 {[%clk 0:01:41]}  Rac8 {[%clk 0:01:51]} 17. a3 {[%clk 0:01:36]}  Nc2 {[%clk 0:01:46]} 18. Nxc2 {[%clk 0:01:32]}  Qxc2 {[%clk 0:01:21]} 19. Qxc2 {[%clk 0:01:31]}  Rxc2 {[%clk 0:01:22]} 20. Nd4 {[%clk 0:01:23]}  Rc7 {[%clk 0:01:14]} 21. Nf5 {[%clk 0:00:47]}  Bb7 {[%clk 0:00:37]} 22. Nxe7+ {[%clk 0:00:44]}  Rxe7 {[%clk 0:00:34]} 23. Bg5 {[%clk 0:00:21]}  Rc7 {[%clk 0:00:34]} 24. Rac1 {[%clk 0:00:21]}  Rfc8 {[%clk 0:00:35]} 25. Rxc7 {[%clk 0:00:20]}  Rxc7 {[%clk 0:00:36]} 26. Rc1 {[%clk 0:00:20]}  Rxc1+ {[%clk 0:00:33]} 27. Bxc1 {[%clk 0:00:20]}  Kf8 {[%clk 0:00:33]} 28. b4 {[%clk 0:00:19]}  Ke7 {[%clk 0:00:33]} 29. Bb2 {[%clk 0:00:19]}  Ba6 {[%clk 0:00:32]} 30. Be4 {[%clk 0:00:16]}  h6 {[%clk 0:00:31]} 31. Bd4 {[%clk 0:00:15]}  Nc7 {[%clk 0:00:31]} 32. f4 {[%clk 0:00:14]}  Nb5 {[%clk 0:00:31]} 33. Bb2 {[%clk 0:00:13]}  Nc7 {[%clk 0:00:31]} 34. g4 {[%clk 0:00:13]}  Bc4 {[%clk 0:00:31]} 35. f5 {[%clk 0:00:12]}  Nd5 {[%clk 0:00:27]} 36. Bxd5 {[%clk 0:00:08]}  Bxd5 {[%clk 0:00:26]} 37. f6+ {[%clk 0:00:08]}  Kf8 {[%clk 0:00:23]} 38. h4 {[%clk 0:00:07]}  g6 {[%clk 0:00:24]} 39. g5 {[%clk 0:00:03]}  hxg5 {[%clk 0:00:23]} 40. hxg5 {[%clk 0:00:02]}  Ke8 {[%clk 0:00:24]} 41. Kf2 {[%clk 0:00:03]}  Kd7 {[%clk 0:00:25]} 42. Ke3 {[%clk 0:00:03]}  Kc6 {[%clk 0:00:26]} 43. Kd4 {[%clk 0:00:04]}  Kb5 {[%clk 0:00:27]} 44. Kc3 {[%clk 0:00:04]}  Ka4 {[%clk 0:00:24]} 45. Kd4 {[%clk 0:00:04]}  Kb3 {[%clk 0:00:25]} 46. Bc1 {[%clk 0:00:04]}  Kc2 {[%clk 0:00:24]} 47. Be3 {[%clk 0:00:04]}  Kb2 {[%clk 0:00:24]} 48. a4 {[%clk 0:00:03]}  Kb3 {[%clk 0:00:24]} 49. a5 {[%clk 0:00:03]}  Kxb4 {[%clk 0:00:24]} 50. axb6 {[%clk 0:00:03]}  axb6 {[%clk 0:00:25]} 51. Kd3 {[%clk 0:00:03]}  b5 {[%clk 0:00:25]} 52. Bb6 {[%clk 0:00:02]}  Kb3 {[%clk 0:00:25]} 53. Kd4 {[%clk 0:00:02]}  b4 {[%clk 0:00:25]} 54. Kc5 {[%clk 0:00:02]}  Ka4 {[%clk 0:00:24]} 55. Kd6 {[%clk 0:00:02]}  b3 {[%clk 0:00:24]} 56. Bd4 {[%clk 0:00:02]}  Ka3 {[%clk 0:00:18]} 57. Ke7 {[%clk 0:00:02]}  b2 {[%clk 0:00:18]} 58. Bxb2+ {[%clk 0:00:02]}  Kxb2 {[%clk 0:00:19]} 59. Kxf7 {[%clk 0:00:03]}  Kc3 {[%clk 0:00:19]} 60. Kxg6 {[%clk 0:00:03]}  Kd4 {[%clk 0:00:17]} 61. f7 {[%clk 0:00:03]}  Kxe5 {[%clk 0:00:18]} 62. f8=Q {[%clk 0:00:03]}  Ke4 {[%clk 0:00:19]} 63. Qf6 {[%clk 0:00:03]}  e5 {[%clk 0:00:20]} 64. Kg7 {[%clk 0:00:04]}  Kd4 {[%clk 0:00:19]} 65. g6 {[%clk 0:00:04]}  Be4 {[%clk 0:00:20]} 66. Kh6 {[%clk 0:00:05]}  Bxg6 {[%clk 0:00:21]} 67. Kxg6 {[%clk 0:00:05]}  Ke4 {[%clk 0:00:22]} 68. Kg5 {[%clk 0:00:05]}  Kd5 {[%clk 0:00:23]} 69. Qf3+ {[%clk 0:00:05]}  e4 {[%clk 0:00:23]} 70. Qe2 {[%clk 0:00:06]}  Kd4 {[%clk 0:00:24]} 71. Kg4 {[%clk 0:00:06]}  e3 {[%clk 0:00:23]} 72. Kg3 {[%clk 0:00:07]}  Ke4 {[%clk 0:00:24]} 73. Kg2 {[%clk 0:00:07]}  Kf4 {[%clk 0:00:24]} 74. Kg1 {[%clk 0:00:07]}  Ke4 {[%clk 0:00:24]} 75. Kf1 {[%clk 0:00:08]}  Kd4 {[%clk 0:00:25]} 76. Kg2 {[%clk 0:00:09]}  Ke4 {[%clk 0:00:24]} 77. Kg3 {[%clk 0:00:09]}  Kd4 {[%clk 0:00:25]} 78. Kf3 {[%clk 0:00:09]}  Ke5 {[%clk 0:00:25]} 79. Qxe3+ {[%clk 0:00:10]}  Kf5 {[%clk 0:00:26]} 80. Qe4+ {[%clk 0:00:10]}  Kg5 {[%clk 0:00:26]} 81. Qf4+ {[%clk 0:00:10]}  Kh5 {[%clk 0:00:26]} 82. Qg4+ {[%clk 0:00:09]}  Kh6 {[%clk 0:00:27]} 83. Kf4 {[%clk 0:00:10]}  Kh7 {[%clk 0:00:27]} 84. Kf5 {[%clk 0:00:10]}  Kh8 {[%clk 0:00:28]} 85. Kf6 {[%clk 0:00:11]}  Kh7 {[%clk 0:00:29]} 86. Qg7# {[%clk 0:00:11]} 1-0


[Site "https://www.chess.com"]

[Event "Titled Tuesday Blitz March 21 Late 2023"]
[White "Olsson, William"]
[Black "Khatena, Moshe"]
[WhiteFideId "1741721"]
[BlackFideId "2010461"]
[WhiteElo "2197"]
[BlackElo "2206"]
[Result "1-0"]
[Round "06"]
[TimeControl "180+2"]
[Date "2023.03.21"]
[WhiteClock "0:02:28"]
[BlackClock "0:01:41"]

1. c4 {[%clk 0:03:00]}  b5 {[%clk 0:02:57]} 2. cxb5 {[%clk 0:02:59]}  Bb7 {[%clk 0:02:57]} 3. Nc3 {[%clk 0:02:57]}  e5 {[%clk 0:02:57]} 4. d4 {[%clk 0:02:56]}  e4 {[%clk 0:02:56]} 5. g3 {[%clk 0:02:54]}  f5 {[%clk 0:02:56]} 6. Bg2 {[%clk 0:02:54]}  Nf6 {[%clk 0:02:56]} 7. Nh3 {[%clk 0:02:51]}  h6 {[%clk 0:02:54]} 8. Nf4 {[%clk 0:02:49]}  g5 {[%clk 0:02:41]} 9. Ng6 {[%clk 0:02:48]}  Rg8 {[%clk 0:02:21]} 10. Nxf8 {[%clk 0:02:48]}  Kxf8 {[%clk 0:02:22]} 11. h4 {[%clk 0:02:48]}  g4 {[%clk 0:01:59]} 12. Bxh6+ {[%clk 0:02:46]}  Kf7 {[%clk 0:01:58]} 13. Bg5 {[%clk 0:02:45]}  Kg6 {[%clk 0:01:58]} 14. d5 {[%clk 0:02:40]}  d6 {[%clk 0:01:54]} 15. Qd4 {[%clk 0:02:39]}  Nbd7 {[%clk 0:01:54]} 16. O-O {[%clk 0:02:32]}  Ne5 {[%clk 0:01:51]} 17. f3 {[%clk 0:02:29]}  gxf3 {[%clk 0:01:47]} 18. exf3 {[%clk 0:02:30]}  exf3 {[%clk 0:01:41]} 19. Bxf3 {[%clk 0:02:31]}  Nfg4 {[%clk 0:01:41]} 20. Bxd8 {[%clk 0:02:28]} 1-0


[Site "https://www.chess.com"]